Workbook

Sheet Copyright
C16: https://actualicese.com/intereses-moratorios-sobre-deudas-tributarias/

Sheet Empieza aquí

Sheet Introducción
B4: Liquidador de intereses de mora sobre deudas tributarias
B5: Fecha de actualización: diciembre 2 de 2024
B6: Importante: antes de iniciar te invitamos a revisar la hoja de cálculo denominada "Ley 2277 de 2022"
B7: Recuerde que el 30 de junio de 2023 finalizaron los beneficios para acceder a reducciones de sanciones e intereses de mora.
B8: Condiciones generales para el cálculo de los intereses de mora
B9: Relación de las normas que han regulado el cálculo de los intereses moratorios - Ley 1607 de 2012: con la modificación efectuada por el artículo 141 de la Ley 1607 de diciembre 26 de 2012 al artículo 635 del ET, se estableció que a partir del 26 de diciembre de 2012 la fórmula para el cálculo de los intereses de mora sobre obligaciones tributarias volvía a ser una fórmula simple donde la tasa de usura que se aplique no se utilizará de forma "efectiva", como se usaba hasta diciembre de 2012 (lo cual implicaba sumar los intereses de un trimestre al valor de la deuda y sobre esa base acumulativa seguir calculando los intereses de los siguientes trimestres en que la deuda permaneciera en mora). Para interpretar la forma de aplicar los cambios que en su momento introdujo la Ley 1607 de 2012, la Dian expidió su Circular 000003 de marzo de 2013. - Ley 1819 de 2016: el artículo 279 de la Ley 1819 de 2016 modificó el artículo 635 del ET para establecer que cada una de las tasas de usura de cada período (trimestral o mensual) por el cual la deuda llegue a estar en mora serían tasas a las que primero se les debe reducir 2 puntos. - Decreto Ley 2106 de 2016: el Decreto Ley 2106 de noviembre 22 de 2019 anexó un inciso al artículo 635 del ET, el cual expone que para liquidar los intereses moratorios se debe observar la fórmula del artículo 590 del ET. Esta fórmula, incorporada también por dicho decreto, introduce al Estatuto Tributario la fórmula utilizada en la Circular 000003 de marzo de 2013. Por tanto, la fórmula para liquidar los intereses no cambia. Teniendo en cuenta lo mencionado anteriormente, el artículo 635 del ET a hoy menciona lo siguiente:
B10: ARTÍCULO 635. Determinación de la tasa de interés moratorio. Para efectos de las obligaciones administradas por la Dirección de Impuestos y Aduanas Nacionales, el interés moratorio se liquidará diariamente a la tasa de interés diario que sea equivalente a la tasa de usura vigente determinada por la Superintendencia Financiera de Colombia para las modalidades de crédito de consumo, menos dos (2) puntos. La Dirección de Impuestos y Aduanas Nacionales publicará la tasa correspondiente en su página web. Las obligaciones insolutas a la fecha de entrada en vigencia de esta ley generarán intereses de mora a la tasa prevista en este artículo sobre los saldos de capital que no incorporen los intereses de mora generados antes de la entrada en vigor de la presente ley. <Inciso adicionado por el artículo 49 del Decreto Ley 2106 de 2019. El nuevo texto es el siguiente:> Para liquidar los intereses moratorios de que trata este artículo aplicará la fórmula establecida en el parágrafo del artículo 590 del Estatuto Tributario. Parágrafo. Lo previsto en este artículo y en el artículo 867-1 tendrá efectos en relación con los impuestos nacionales, departamentales, municipales y distritales.
B11: De otra parte, para responder al interrogante sobre la fecha en que se empezaría a aplicar el cambio que introdujo el artículo 279 de la Ley 1819 de 2016, la Dian, a través de su Concepto 5033 de marzo 10 de 2017, indicó lo siguiente:
B12: Le manifestamos que en efecto el artículo 279 de la Ley 1819 de 2016 modificó el artículo 635 del Estatuto Tributario, el cual determinó que la tasa de interés moratorio para las obligaciones tributarias se liquidará diariamente a la tasa de interés diario equivalente a la tasa de usura certificada por la Superintendencia Financiera, para la modalidad de crédito de consumo reducida en dos puntos. Así las cosas, para la liquidación de interés de mora se deben seguir aplicando los mismos parámetros señalados en la Circular 0003 de 2013, pero utilizando la tasa de interés moratorio establecida a partir de la vigencia de la Ley 1819 de 2016.
B13: Por tanto, desde enero de 2017, al momento de calcular intereses moratorios, se podía entender que todas las tasas de usura de todos los diferentes períodos (trimestrales o mensuales) por los cuales la deuda haya llegado a estar en mora (y sin importar que algunos trimestres sean anteriores a enero de 2017), son tasas que primero se deben reducir en dos (2) puntos porcentuales y que adicionalmente el interés seguirá siendo un interés simple, de acuerdo con lo indicado en el artículo 48 del Decreto 2106 de 2019, que modifica el artículo 590 del ET:
B14: Para liquidar los intereses moratorios de que trata este parágrafo o el artículo 635 del Estatuto Tributario, el contribuyente, responsable, agente retenedor, declarante o la administración tributaria, según sea el caso, aplicará la siguiente fórmula de interés simple, así: (K x T x t). Donde: K: valor insoluto de la obligación. T: factor de la tasa de interés (corresponde a la tasa de interés establecida en el parágrafo del artículo 590 o artículo 635 del Estatuto Tributario, según corresponda, dividida en 365 o 366 días según el caso). t: número de días calendario de mora desde la fecha en que se debió realizar el pago.
B16: Adicionalmente, debe tenerse presente que, aunque desde enero de 2007 la Superfinanciera venía fijando de forma trimestral la respectiva tasa de interés bancario corriente para los créditos de la modalidad "consumo y ordinario" (tasa que al multiplicarse por 1,5 veces y restarle luego 2 puntos porcentuales permitía obtener la tasa de usura para efectos tributarios), a raíz de lo que sucedió en agosto de 2017, por instrucción de la presidencia de la Nación, la Superfinanciera volvería a fijar dicha tasa de forma mensual. Por tanto, desde septiembre de 2017 (empezando con la tasa que fue fijada a través de la Resolución 1155 de agosto 30 de 2017), la tasa de usura para efectos tributarios se ha estado definiendo de forma mensual.
B17: (Ver nuestro editorial: Tasa de mora tributaria cambiará cada mes a partir de septiembre de 2017).
B18: Interpretación inicial de Actualícese Cabe anotar que, al momento de calcular los intereses de mora sobre deudas tributarias, surgían diferentes inquietudes como: ¿se debe contar con el historial de todas las tasas de usura que hayan estado vigentes en cada mes o solo se tiene en cuenta la última tasa emitida por la Superfinanciera para realizar el cálculo de todos los días de mora? Cuando el artículo 590 del ET expone que la tasa se divide entre 365 o 366 días según el caso, ¿qué se entiende por "según el caso"?, ¿que si se liquida en año bisiesto se divide entre 366 o que se tienen en cuenta los años de la mora (si incluyen o no años bisiestos) y que se debe hacer un cálculo diferente por año? Sobre estas inquietudes se generaron diferentes interpretaciones; siendo así, interpretamos en un inicio que se utilizaban todas las tasas del histórico para calcular el interés diario y, además, que si la obligación era liquidada en un año bisiesto, como el 2020 y 2024, el cálculo debe realizarse con 366 para todos los meses del histórico de la mora. Por ejemplo, para 2021, 2022 y 2023 ya debemos realizar el cálculo con 365 días. De esta forma emitimos este liquidador hasta noviembre de 2021.
B19: Postura de la Dian Al respecto, con la emisión de la Ley de Inversión Social y los nuevos programas que adelanta la Dian, finalmente se dio a conocer una interpretación concreta sobre este asunto. El 5 de noviembre de 2021 la entidad compartió el video ¿Cómo lograr reducciones en obligaciones pendientes por COVID-19? ; en este (en el minuto 19:36), el subdirector de cobranzas, el Dr. Argemiro Franco, explica que la Dian utiliza únicamente la última tasa emitida por la Superfinanciera para realizar el cálculo, además utiliza la tasa dividida en 365 debido a que el cálculo se realiza en 2021 y no es año bisiesto.
B20: =+B4 -> Liquidador de intereses de mora sobre deudas tributarias
B21: En concordancia con esto, en la respuesta 6 del Concepto Dian 415 de noviembre 5 de 2021 se expone que se debe utilizar la tasa de interés vigente al momento de realizar el cálculo y no la tasa del mes en el que se incurrió la mora. Con esto en mente, hemos ajustado el cálculo de este liquidador. No obstante, como entendemos que la regulación de este tema se presta para diferentes interpretaciones, es importante anotar que esta herramienta es una guía diseñada con base en la interpretación que realizamos de la normativa vigente y de las explicaciones suministradas por la Dian. Por lo tanto, Actualícese no es responsable de la información emitida a dicha entidad; será el/la contador/a quien, utilizando esta guía y atendiendo las normas relacionadas, pueda emitir sus propias conclusiones.
B22: Para conocer el total de intereses de mora solo se tendrá que conocer la fecha de vencimiento de la obligación, la fecha en la que realizará el pago y el monto del impuesto u obligación en mora, e ingresar estos 3 datos en los campos solicitados al dar clic al botón “Ir al liquidador” ubicado en esta misma hoja.
B23: Este formato incluye las condiciones actuales y generales para liquidar los intereses moratorios sobre obligaciones tributarias. Si deseas conocer (para efectos de auditoría) cómo operó el cálculo de intereses moratorios para las empresas que se vieron afectadas por el COVID-19 y presentaron unas condiciones distintas, te invitamos a revisar nuestro Liquidador de intereses moratorios reducidos con tasa transitoria de la Ley de Inversión Social 2155 de 2021
B24: Además, se debe tener en cuenta que actualizamos esta herramienta mensualmente, de manera que deberás remitirte cada mes a este enlace: https://actualicese.com/intereses-moratorios-sobre-deudas-tributarias/ para descargar la actualización realizada en este archivo.
B25: Nota: en caso de requerir calcular intereses para una fecha posterior a la publicación en el portal de este liquidador, será necesario incluir la tasa de usura vigente usando el formulario destinado a tal fin.
B26: Por último, recuerda que al hacer una revisión del comportamiento de la tasa de interés bancario corriente y su correspondiente tasa de usura se puede concluir que:
B27: Tasa de usura = 1,5 veces la tasa de interés corriente
B28: Esto se podrá verificar en la hoja “Tasas de interés Dian” de este archivo de Excel.
B37: Nota: el diseño, los datos o comentarios bajo los cuales se elaboró este formato se entregan a título de guía y hacen parte de la interpretación de Actualícese. Será el usuario quien deba estudiar las normas requeridas, preparar y emitir la información a la que haya lugar. Actualícese no se hace responsable de las interpretaciones, operaciones o información derivadas del uso de esta herramienta.

Sheet Ley 2277 de 2022
B4: Liquidador de intereses de mora sobre deudas tributarias según la Ley de reforma tributaria 2277 de diciembre 13 de 2022
B5: =+Introducción!B5 -> Fecha de actualización: diciembre 2 de 2024
B7: TASA DE INTERÉS MORATORIA TRANSITORIA - LEY 2277 DE REFORMA TRIBUTARIA 2022
B8: Según el artículo 91 de la Ley 2277 de 2022, para las obligaciones tributarias y aduaneras que ya fueron presentadas pero sin pago y que se cancelen totalmente hasta el 30 de junio de 2023, y para las facilidades o acuerdos para el pago de que trata el artículo 814 del Estatuto Tributario que se suscriban a partir de la entrada en vigencia de la presente Ley y hasta el 30 de junio de 2023, la tasa de interés de mora será equivalente al 50% de la tasa de interés establecida en el artículo 635 del Estatuto Tributario. La solicitud para la suscripción de las facilidades o acuerdos para el pago deberán ser radicadas a más tardar el 15 de mayo de 2023. Será válido cualquier medio de pago, incluida la compensación de los saldos a favor que se generen entre la fecha de entrada en vigencia de la presente ley y el 30 de junio de 2023.
B9: REDUCCIÓN TRANSITORIA DE SANCIONES Y DE TASA DE INTERÉS PARA OMISOS EN LA OBLIGACIÓN DE DECLARAR DE LOS IMPUESTOS ADMINISTRADOS POR LA DIAN.
B10: Recordemos que, el artículo 93 de la Ley 2277 de Reforma Tributaria 2022, indica que para los contribuyentes que al 31 de diciembre de 2022 no hayan presentado las declaraciones tributarias a que estaban obligados por los impuestos administrados por la Unidad Administrativa Especial Dirección de Impuestos y Aduanas Nacionales -DIAN y que las presenten antes del 31 de mayo de 2023, con pago o con facilidades o acuerdos para el pago solicitadas a esta fecha y suscritas antes del 30 de junio de 2023, se reducirán y liquidarán las sanciones y la tasa de interés moratoria en los siguientes términos: 1. La sanción de extemporaneidad se reducirá en un sesenta por ciento (60%) del monto determinado después de aplicar los artículos 641 y 640 del Estatuto Tributario. 2. La tasa de interés de mora se reducirá en un sesenta por ciento (60%) de la tasa de interés establecida en el artículo 635 del Estatuto Tributario.
B13: Nota: el diseño, los datos o comentarios bajo los cuales se elaboró este formato se entregan a título de guía y hacen parte de la interpretación de Actualícese. Será el usuario quien deba estudiar las normas requeridas, preparar y emitir la información a la que haya lugar. Actualícese no se hace responsable de las interpretaciones, operaciones o información derivadas del uso de esta herramienta.
B15: Recuerde que el 30 de junio de 2023 finalizaron los beneficios de la Ley 2277 de 2022 para acceder a reducciones de sanciones e intereses de mora. Sin embargo, hemos decidido dejar esta hoja de cálculo aún disponible en nuestro liquidador, con el ánimo de que los usuarios puedan consultar el histórico de dichos beneficios planteados en los artículos 91 y 93 de la Ley 2277 de 2023.

Sheet Intereses moratorios
B7: Liquidador de intereses de mora sobre obligaciones tributarias
B10: =+Introducción!B5 -> Fecha de actualización: diciembre 2 de 2024
C12: Para utilizar esta herramienta es necesario que todas las celdas resaltadas en amarillo sean diligenciadas
B15: 1) Datos básicos
C17: Valor del impuesto en mora (sin incluir ningún tipo de sanciones) | I17: $ 49,000,000
G18: Formato fecha: | I18: día/mes/año
B19: =IFERROR(VLOOKUP(B20,cod,1,0),0) -> 202412 | C19: Fecha en que se venció la obligación | I19: 2019-12-02
A20: =EDATE(TODAY(),-12*5) -> 2019-12-02 | B20: =YEAR(I20)&MONTH(I20) -> 202412 | C20: Fecha en que se decide hacer el pago | I20: 2024-12-01
C22: Tasa de interés bancario corriente para la modalidad de crédito de consumo y ordinario vigente al momento de hacer el cálculo | I22: =IFERROR(VLOOKUP(B20,cod,4,0),"Falta tasa") -> 26.39
B26: 2) Cálculo de los intereses moratorios respectivos
C28: Días de mora: | F28: =$I$20-$I$19 -> 1,826 días
C29: Tasa diaria aplicable en el período | F29: =IFERROR(($I$22%-2%)/366,"Error en tasa") -> 0.0666393%
C31: Intereses de mora: | F31: =IFERROR(ROUNDUP((I17*F29)*F28,-3),"Error en tasa") -> $ 59,625,000
C33: TOTAL A PAGAR: | F33: =IFERROR(F31+I17,"Error en tasa") -> $ 108,625,000
B36: 2) Cálculo de los intereses moratorios respectivos (Interés transitorio art. 91)
C38: Días de mora: | F38: =$I$20-$I$19 -> 1,826 días
C39: Tasa diaria aplicable en el período | F39: =IFERROR((($I$22%-2%)*50%)/365,"Error en tasa") -> 0.0334110% | I39: Tasa reducida un 50%
C41: Intereses de mora: | F41: =IFERROR(ROUNDUP((I17*F39)*F38,-3),"Error en tasa") -> $ 29,895,000
C43: TOTAL A PAGAR: | F43: =IFERROR(F41+I17,"Error en tasa") -> $ 78,895,000
B46: 2) Cálculo de los intereses moratorios respectivos (Reducción intereses art. 93)
C48: Días de mora: | F48: =$I$20-$I$19 -> 1,826 días
C49: Tasa diaria aplicable en el período | F49: =IFERROR((($I$22%-2%)*40%)/365,"Error en tasa") -> 0.0267288% | I49: Tasa reducida en un 60%
C51: Intereses de mora: | F51: =IFERROR(ROUNDUP((I17*F49)*F48,-3),"Error en tasa") -> $ 23,916,000
C53: TOTAL A PAGAR: | F53: =IFERROR(F51+I17,"Error en tasa") -> $ 72,916,000
C58: Recuerde que según el término de firmeza general indicado en el artículo 715 del ET y siguientes, la Dian solo tiene 5 años (contados desde el vencimiento del plazo para declarar) para exigir una declaración tributaria que no se le haya presentado. Por tanto, si ya han trascurrido esos 5 años de plazo y la Dian no hizo ningún emplazamiento para obligar al contribuyente a presentar dicha declaración, no es obligación presentarla ni cancelar los impuestos e intereses de mora que en ella se hubieran liquidado. Así mismo, si la declaración sí se presentó, pero no se le hizo el pago, el artículo 817 del ET y siguientes indican que la Dian tiene 5 años de plazo contados desde el vencimiento del plazo para declarar (o contados desde el día en que se haya presentado, si es que la presentaron extemporáneamente) para exigir el pago de esa declaración. Por tanto, si ya han trascurrido esos 5 años y la Dian no expidió ningún mandamiento de pago, no es obligación cancelar los valores por impuesto e intereses de mora que se estaban adeudando sobre la obligación pendiente de pago (se dice que prescribió la obligación fiscal). Teniendo en cuenta lo anterior, hemos desarrollado este liquidador.
A60: Limite1 | B60: 2023-06-30

Sheet Tasas de interés Dian
B3: Histórico de tasas que fueron utilizadas para la liquidación de intereses moratorios con la Dian
B4: La información incluida en este anexo se ubica con el fin de entregar un histórico y un comparativo de las tasas utilizadas para la liquidación de intereses de mora.
B5: Condiciones generales
B6: Período | D6: Desde el 1 de octubre de 2014 hasta la fecha | G6: Resolución
B7: Desde | C7: hasta | D7: Tasa de usura Superintendencia Financiera de Colombia | E7: Tasa mensual de intereses moratorios Dian (tasa de usura menos 2 puntos) | F7: Tasa diaria aplicable en el período (con tasa de usura)
A8: Cód
A9: =IF(D9=0,0,YEAR(B9)&MONTH(B9)) -> 202412 | B9: 2024-12-01 | C9: 2024-12-31 | D9: 26.39 | E9: =IF(D9="","Por favor digite la tasa de usura",IF(D9-2<0,0,D9-2)) -> 24.39 | F9: =IF(D9="","Por favor digite la tasa de usura",IF(((D9%-2%)/366)<0,0,(D9%-2%)/366)) -> 0.066639% | G9: Resolución 2394 de noviembre 30 de 2024
A10: 202411 | B10: 2024-11-01 | C10: 2024-11-30 | D10: 27.90 | E10: 25.90 | F10: 0.070765% | G10: Resolución 2168 de octubre 31 de 2024
A11: 202410 | B11: 2024-10-01 | C11: 2024-10-31 | D11: 28.17 | E11: 26.17 | F11: 0.071503% | G11: Resolución 1901 de septiembre 30 de 2024
A12: 20249 | B12: 2024-09-01 | C12: 2024-09-30 | D12: 28.85 | E12: 26.85 | F12: 0.073361% | G12: Resolución 1688 de agosto 30 de 2024
A13: 20248 | B13: 2024-08-01 | C13: 2024-08-31 | D13: 29.21 | E13: 27.21 | F13: 0.074344% | G13: Resolución 1519 de julio 31 de 2024
A14: 20247 | B14: 2024-07-01 | C14: 2024-07-31 | D14: 29.49 | E14: 27.49 | F14: 0.075109% | G14: Resolución 1308 de junio 28 de 2024
A15: 20246 | B15: 2024-06-01 | C15: 2024-06-30 | D15: 30.84 | E15: 28.84 | F15: 0.078798% | G15: Resolución 1143 de mayo 31 de 2024
A16: 20245 | B16: 2024-05-01 | C16: 2024-05-31 | D16: 31.53 | E16: 29.53 | F16: 0.080683% | G16: Resolución 0872 de abril 30 de 2024
A17: 20244 | B17: 2024-04-01 | C17: 2024-04-30 | D17: 33.09 | E17: 31.09 | F17: 0.084945% | G17: Resolución 0598 de marzo 21 de 2024
A18: 20243 | B18: 2024-03-01 | C18: 2024-03-31 | D18: 33.30 | E18: 31.30 | F18: 0.085519% | G18: Resolución 0400 de febrero 29 de 2024
A19: 20242 | B19: 2024-02-01 | C19: 2024-02-29 | D19: 34.97 | E19: 32.97 | F19: 0.090082% | G19: Resolución 0150 de enero 29 de 2024
A20: 20241 | B20: 2024-01-01 | C20: 2024-01-31 | D20: 34.98 | E20: 32.98 | F20: 0.090109% | G20: Resolución 2331 de diciembre 29 de 2023
A21: 202312 | B21: 2023-12-01 | C21: 2023-12-31 | D21: 37.56 | E21: 35.56 | F21: =IF(D21="","Por favor digite la tasa de usura",IF(((D21%-2%)/365)<0,0,(D21%-2%)/365)) -> 0.097425% | G21: Resolución 2074 de noviembre 30 de 2023
A22: =IF(D22=0,0,YEAR(B22)&MONTH(B22)) -> 202311 | B22: 2023-11-01 | C22: 2023-11-30 | D22: 38.28 | E22: 36.28 | F22: 0.099397% | G22: Resolución 1801 de octubre 30 2023
A23: 202310 | B23: 2023-10-01 | C23: 2023-10-31 | D23: 39.80 | E23: 37.80 | F23: 0.103562% | G23: Resolución 1520 de septiembre 27 de 2023
A24: 20239 | B24: 2023-09-01 | C24: 2023-09-30 | D24: 42.05 | E24: 40.05 | F24: 0.109726% | G24: Resolución 1328 de agosto 31 de 2023
A25: 20238 | B25: 2023-08-01 | C25: 2023-08-31 | D25: 43.13 | E25: 41.13 | F25: 0.112685% | G25: Resolución 1090 de julio 31 de 2023
A26: 20237 | B26: 2023-07-01 | C26: 2023-07-31 | D26: 44.04 | E26: 42.04 | F26: 0.115178% | G26: Resolución 0945 de junio 30 de 2023
A27: 20236 | B27: 2023-06-01 | C27: 2023-06-30 | D27: 44.64 | E27: 42.64 | F27: 0.116822% | G27: Resolución 0766 de mayo 31 de 2023
A28: 20235 | B28: 2023-05-01 | C28: 2023-05-31 | D28: 45.41 | E28: 43.41 | F28: 0.118932% | G28: Resolución 0606 de abril 28 de 2023
A29: 20234 | B29: 2023-04-01 | C29: 2023-04-30 | D29: 47.09 | E29: =IF(D29="","",D29-2) -> 45.09 | F29: 0.123534% | G29: Resolución 0472 de marzo 30 de 2023
A30: 20233 | B30: 2023-03-01 | C30: 2023-03-31 | D30: 46.26 | E30: =+D30-2 -> 44.26 | F30: 0.121260% | G30: Resolución 0236 de febrero 24 de 2023
A31: 20232 | B31: 2023-02-01 | C31: 2023-02-28 | D31: 45.27 | E31: =+D31-2 -> 43.27 | F31: 0.118548% | G31: Resolución 0100 de enero 27 de 2023
A32: 20231 | B32: 2023-01-01 | C32: 2023-01-31 | D32: 43.26 | E32: =+D32-2 -> 41.26 | F32: 0.113041% | G32: Resolución 1968 de diciembre 29 de 2022
A33: 202212 | B33: 2022-12-01 | C33: 2022-12-31 | D33: =27.64*1.5 -> 41.46 | E33: =+D33-2 -> 39.46 | F33: =(D33%-2%)/365 -> 0.108110% | G33: Resolución 1715 de noviembre 30 de 2022
A34: 202211 | B34: 2022-11-01 | C34: 2022-11-30 | D34: =25.78*1.5 -> 38.67 | E34: =+D34-2 -> 36.67 | F34: 0.100466% | G34: Resolución 1537 de octubre 28 de 2022
A35: 202210 | B35: 2022-10-01 | C35: 2022-10-31 | D35: =24.61*1.5 -> 36.92 | E35: =+D35-2 -> 34.92 | F35: 0.095658% | G35: Resolución 1327 de septiembre 29 de 2022
A36: 20229 | B36: 2022-09-01 | C36: 2022-09-30 | D36: =23.5*1.5 -> 35.25 | E36: 33.25 | F36: 0.091096% | G36: Resolución 1126 de agosto 31 de 2022
A37: 20228 | B37: 2022-08-01 | C37: 2022-08-31 | D37: =22.21*1.5 -> 33.32 | E37: 31.32 | F37: 0.085795% | G37: Resolución 0973 de julio 29 de 2022
A38: 20227 | B38: 2022-07-01 | C38: 2022-07-31 | D38: =21.28*1.5 -> 31.92 | E38: 29.92 | F38: 0.081973% | G38: Resolución 0801 de junio 30 de 2022
A39: 20226 | B39: 2022-06-01 | C39: 2022-06-30 | D39: =20.4*1.5 -> 30.60 | E39: =D39-2 -> 28.60 | F39: 0.078356% | G39: Resolución 0617 de mayo 31 de 2022
A40: 20225 | B40: 2022-05-01 | C40: 2022-05-31 | D40: 29.57 | E40: 27.57 | F40: 0.075521% | G40: Resolución 0498 de abril 29 de 2022
A41: 20224 | B41: 2022-04-01 | C41: 2022-04-30 | D41: =19.05*1.5 -> 28.58 | E41: =D41-2 -> 26.58 | F41: 0.072808% | G41: Resolución 0382 de marzo 31 de 2022
A42: 20223 | B42: 2022-03-01 | C42: 2022-03-31 | D42: 27.71 | E42: =D42-2 -> 25.71 | F42: 0.070438% | G42: Resolución 0256 de febrero 25 de 2022
A43: 20222 | B43: 2022-02-01 | C43: 2022-02-28 | D43: 27.45 | E43: 25.45 | F43: 0.069726% | G43: Resolución 0143 de enero 28 de 2022
A44: 20221 | B44: 2022-01-01 | C44: 2022-01-31 | D44: 26.49 | E44: 24.49 | F44: 0.067096% | G44: Resolución 1597 de diciembre 30 de 2021
A45: 202112 | B45: 2021-12-01 | C45: 2021-12-31 | D45: 26.19 | E45: 24.19 | F45: 0.066274% | G45: Resolución 1405 de noviembre 30 de 2021
A46: 202111 | B46: 2021-11-01 | C46: 2021-11-30 | D46: 25.91 | E46: 23.91 | F46: 0.065507% | G46: Resolución 1259 de octubre 29 de 2021
A47: 202110 | B47: 2021-10-01 | C47: 2021-10-31 | D47: 25.62 | E47: 23.62 | F47: 0.064712% | G47: Resolución 1095 de septiembre 30 de 2021
A48: 20219 | B48: 2021-09-01 | C48: 2021-09-30 | D48: 25.79 | E48: 23.79 | F48: 0.065178% | G48: Resolución 0931 de agosto 30 de 2021
A49: 20218 | B49: 2021-08-01 | C49: 2021-08-31 | D49: 25.86 | E49: 23.86 | F49: 0.065370% | G49: Resolución 0804 de julio 30 de 2021
A50: 20217 | B50: 2021-07-01 | C50: 2021-07-31 | D50: 25.77 | E50: 23.77 | F50: 0.065123% | G50: Resolución 0622 de junio 30 de 2021
A51: 20216 | B51: 2021-06-01 | C51: 2021-06-30 | D51: 25.82 | E51: 23.82 | F51: 0.065260% | G51: Resolución 0509 de mayo 28 de 2021
A52: 20215 | B52: 2021-05-01 | C52: 2021-05-31 | D52: 25.83 | E52: 23.83 | F52: 0.065288% | G52: Resolución 0407 de abril 30 de 2021
A53: 20214 | B53: 2021-04-01 | C53: 2021-04-30 | D53: 25.97 | E53: 23.97 | F53: 0.065671% | G53: Resolución 0305 de marzo 31 de 2021
A54: 20213 | B54: 2021-03-01 | C54: 2021-03-31 | D54: 26.12 | E54: 24.12 | F54: 0.066082% | G54: Resolución 0161 de febrero 26 de 2021
A55: 20212 | B55: 2021-02-01 | C55: 2021-02-28 | D55: 26.31 | E55: 24.31 | F55: 0.066603% | G55: Resolución 0064 de enero 29 de 2021
A56: 20211 | B56: 2021-01-01 | C56: 2021-01-31 | D56: 25.98 | E56: 23.98 | F56: =(D56%-2%)/365 -> 0.065699% | G56: Resolución 1215 de diciembre 30 de 2020
A57: 202012 | B57: 2020-12-01 | C57: 2020-12-31 | D57: 26.19 | E57: 24.19 | F57: =(D57%-2%)/365 -> 0.066274% | G57: Resolución 1034 de noviembre 26 de 2020
A58: 202011 | B58: 2020-11-01 | C58: 2020-11-30 | D58: 26.76 | E58: 24.76 | F58: =(D58%-2%)/365 -> 0.067836% | G58: Resolución 0947 de octubre 29 de 2020
A59: 202010 | B59: 2020-10-01 | C59: 2020-10-31 | D59: 27.14 | E59: 25.14 | F59: =(D59%-2%)/365 -> 0.068877% | G59: Resolución 0869 de septiembre 30 de 2020
A60: 20209 | B60: 2020-09-01 | C60: 2020-09-30 | D60: 27.53 | E60: 25.53 | F60: 0.069945% | G60: Resolución 0769 de agosto 28 de 2020
A61: 20208 | B61: 2020-08-01 | C61: 2020-08-31 | D61: 27.44 | E61: 25.44 | F61: 0.069699% | G61: Resolución 0685 de julio 31 de 2020
A62: 20207 | B62: 2020-07-01 | C62: 2020-07-31 | D62: 27.18 | E62: 25.18 | F62: 0.068986% | G62: Resolución 0605 de junio 30 de 2020
A63: 20206 | B63: 2020-06-01 | C63: 2020-06-30 | D63: 27.18 | E63: 25.18 | F63: 0.068986% | G63: Resolución 0505 de mayo 29 de 2020
A64: 20205 | B64: 2020-05-01 | C64: 2020-05-31 | D64: 27.29 | E64: 25.29 | F64: 0.069288% | G64: Resolución 000437 de abril 30 de 2020
A65: 20204 | B65: 2020-04-01 | C65: 2020-04-30 | D65: 28.04 | E65: 26.04 | F65: =(D65%-2%)/365 -> 0.071342% | G65: Resolución 000351 de marzo 27 de 2020
A66: 20203 | B66: 2020-03-01 | C66: 2020-03-31 | D66: 28.43 | E66: 26.43 | F66: 0.072411% | G66: Resolución 000205 de febrero 27 de 2020
A67: 20202 | B67: 2020-02-01 | C67: 2020-02-29 | D67: 28.59 | E67: 26.59 | F67: 0.072849% | G67: Resolución 0094 de enero 30 de 2020
A68: 20201 | B68: 2020-01-01 | C68: 2020-01-31 | D68: 28.16 | E68: 26.16 | F68: 0.071671% | G68: Resolución 1768 de diciembre 27 de 2019
A69: 201912 | B69: 2019-12-01 | C69: 2019-12-31 | D69: 28.37 | E69: 26.37 | F69: =(D69%-2%)/365 -> 0.072247% | G69: Resolución 1603 de noviembre 29 de 2019
A70: 201911 | B70: 2019-11-01 | C70: 2019-11-30 | D70: 28.55 | E70: 26.55 | F70: 0.072740% | G70: Resolución 1474 de octubre 30 de 2019
A71: 201910 | B71: 2019-10-01 | C71: 2019-10-31 | D71: 28.65 | E71: 26.65 | F71: 0.073014% | G71: Resolución 1293 de septiembre 30 de 2019
A72: 20199 | B72: 2019-09-01 | C72: 2019-09-30 | D72: 28.98 | E72: 26.98 | F72: 0.073918% | G72: Resolución 1145 de agosto 30 de 2019
A73: 20198 | B73: 2019-08-01 | C73: 2019-08-31 | D73: 28.98 | E73: 26.98 | F73: 0.073918% | G73: Resolución 1018 de julio 31 de 2019
A74: 20197 | B74: 2019-07-01 | C74: 2019-07-31 | D74: 28.92 | E74: 26.92 | F74: 0.073753% | G74: Resolución 0829 de junio 28 de 2019
A75: 20196 | B75: 2019-06-01 | C75: 2019-06-30 | D75: 28.95 | E75: 26.95 | F75: 0.073836% | G75: Resolución 0697 de mayo 30 de 2019
A76: 20195 | B76: 2019-05-01 | C76: 2019-05-31 | D76: 29.01 | E76: 27.01 | F76: 0.074000% | G76: Resolución 0574 de abril 30 de 2019
A77: 20194 | B77: 2019-04-01 | C77: 2019-04-30 | D77: 28.98 | E77: 26.98 | F77: 0.073918% | G77: Resolución 0389 de marzo 29 de 2019
A78: 20193 | B78: 2019-03-01 | C78: 2019-03-31 | D78: 29.06 | E78: 27.06 | F78: 0.074137% | G78: Resolución 0263 de febrero 28 de 2019
A79: 20192 | B79: 2019-02-01 | C79: 2019-02-28 | D79: 29.55 | E79: 27.55 | F79: 0.075479% | G79: Resolución 0111 de enero 31 de 2019
A80: 20191 | B80: 2019-01-01 | C80: 2019-01-31 | D80: 28.74 | E80: 26.74 | F80: 0.073260% | G80: Resolución 1872 de diciembre 27 de 2018
A81: 201812 | B81: 2018-12-01 | C81: 2018-12-31 | D81: 29.10 | E81: 27.10 | F81: 0.074247% | G81: Resolución 1708 de noviembre 29 de 2018
A82: 201811 | B82: 2018-11-01 | C82: 2018-11-30 | D82: 29.24 | E82: 27.24 | F82: 0.074630% | G82: Resolución 1521 de octubre 28 de 2018
A83: 201810 | B83: 2018-10-01 | C83: 2018-10-31 | D83: 29.45 | E83: 27.45 | F83: 0.075205% | G83: Resolución 1294 de septiembre 28 de 2018
A84: 20189 | B84: 2018-09-01 | C84: 2018-09-30 | D84: 29.72 | E84: 27.72 | F84: 0.075945% | G84: Resolución 1112 de agosto 31 de 2018
A85: 20188 | B85: 2018-08-01 | C85: 2018-08-31 | D85: 29.91 | E85: 27.91 | F85: 0.076466% | G85: Resolución 0954 de julio 31 de 2018
A86: =IF(D86=0,0,YEAR(B86)&MONTH(B86)) -> 20187 | B86: 2018-07-01 | C86: 2018-07-31 | D86: 30.05 | E86: 28.05 | F86: 0.076849% | G86: Resolución 0820 de junio 28 de 2018
A87: 20186 | B87: 2018-06-01 | C87: 2018-06-30 | D87: 30.42 | E87: 28.42 | F87: 0.077863% | G87: Resolución 0687 de mayo 30 de 2018
A88: 20185 | B88: 2018-05-01 | C88: 2018-05-31 | D88: 30.66 | E88: 28.66 | F88: 0.078521% | G88: Resolución 0527 de abril 27 de 2018
A89: 20184 | B89: 2018-04-01 | C89: 2018-04-30 | D89: 30.72 | E89: 28.72 | F89: 0.078685% | G89: Resolución 0398 de marzo 28 de 2018
A90: 20183 | B90: 2018-03-01 | C90: 2018-03-31 | D90: 31.02 | E90: 29.02 | F90: 0.079507% | G90: Resolución 0259 de febrero 28 de 2018
A91: 20182 | B91: 2018-02-01 | C91: 2018-02-28 | D91: 31.52 | E91: 29.52 | F91: 0.080877% | G91: Resolución 0131 de enero 31 de 2018
A92: 20181 | B92: 2018-01-01 | C92: 2018-01-31 | D92: 31.04 | E92: 29.04 | F92: 0.079562% | G92: Resolución 1890 de diciembre 28 de 2017
A93: 201712 | B93: 2017-12-01 | C93: 2017-12-31 | D93: 31.16 | E93: 29.16 | F93: 0.079890% | G93: Resolución 1619 de noviembre 29 de 2017
A94: 201711 | B94: 2017-11-01 | C94: 2017-11-30 | D94: 31.44 | E94: 29.44 | F94: 0.080658% | G94: Resolución 1447 de octubre 27 de 2017
A95: 201710 | B95: 2017-10-01 | C95: 2017-10-31 | D95: 31.73 | E95: 29.73 | F95: 0.081452% | G95: Resolución 1298 de septiembre 29 de 2017
A96: 20179 | B96: 2017-09-01 | C96: 2017-09-30 | D96: 32.22 | E96: 30.22 | F96: 0.082795% | G96: Resolución 1155 de agosto 30 de 2017
A97: 20177 | B97: 2017-07-01 | C97: 2017-08-30 | D97: 32.97 | E97: 30.97 | F97: 0.084849% | G97: Resolución 907 de junio 30 de 2017
A98: 20174 | B98: 2017-04-01 | C98: 2017-06-30 | D98: 33.50 | E98: 31.50 | F98: 0.086301% | G98: Resolución 0488 de marzo 28 de 2017
A99: 20171 | B99: 2017-01-01 | C99: 2017-03-31 | D99: 33.51 | E99: 31.51 | F99: 0.086329% | G99: Resolución 1612 de diciembre 26 de 2016
A100: 201610 | B100: 2016-10-01 | C100: 2016-12-31 | D100: 32.99 | E100: 30.99 | F100: 0.084904% | G100: Resolución 1233 de septiembre 29 de 2016
A101: 20167 | B101: 2016-07-01 | C101: 2016-09-30 | D101: 32.01 | E101: 30.01 | F101: 0.082219% | G101: Resolución 0811 de junio 28 de 2016
A102: 20164 | B102: 2016-04-01 | C102: 2016-06-30 | D102: 30.81 | E102: 28.81 | F102: 0.078932% | G102: Resolución 0334 de marzo 29 de 2016
A103: 20161 | B103: 2016-01-01 | C103: 2016-03-31 | D103: 29.52 | E103: 27.52 | F103: 0.075397% | G103: Resolución 1788 de diciembre 28 de 2015
A104: 201510 | B104: 2015-10-01 | C104: 2015-12-31 | D104: 29.00 | E104: 27.00 | F104: 0.073973% | G104: Resolución 1341 de septiembre 29 de 2015
A105: 20157 | B105: 2015-07-01 | C105: 2015-09-30 | D105: 28.89 | E105: 26.89 | F105: 0.073671% | G105: Resolución 913 de junio 30 de 2015
A106: 20154 | B106: 2015-04-01 | C106: 2015-06-30 | D106: 29.06 | E106: =D106-2 -> 27.06 | F106: 0.074137% | G106: Resolución 369 de marzo 30 de 2015
A107: 20151 | B107: 2015-01-01 | C107: 2015-03-31 | D107: 28.82 | E107: 26.82 | F107: 0.073479% | G107: Resolución 2359 de diciembre 30 de 2014
A108: 201410 | B108: 2014-10-01 | C108: 2014-12-31 | D108: 28.76 | E108: 26.76 | F108: 0.073315% | G108: Resolución 1707 de septiembre 30 de 2014

Sheet Listado completo de archivo
A6: ESTE ES EL LISTADO COMPLETO DE LAS HERRAMIENTAS PUBLICADAS
A7: Fecha de actualización: diciembre 2 de 2024
A8: Haz clic aquí para ver una versión actualizada de este listado
A9: IDEA: | B9: Si quieres buscar una herramienta en especial en este listado, dale "Buscar" en Excel (Ctrl + B, en casi todos lados).
B11: Plantilla en Excel para elaborar el estado de cambios en el patrimonio
B13: Simulador en Excel del estado de situación financiera (análisis comparativo)
B15: [Guía] Planeador en Excel para contadores públicos
B17: Liquidador automatizado de la prima de servicios con comprobante de pago
B19: Casos prácticos de deterioro de cartera fiscal (provisión individual y general)
B21: [Pack de Formatos] 15 herramientas clave en Excel para la planeación estratégica, presupuestal, financiera y fiscal
B23: Casos prácticos para comprender la contabilización de pasivos en el cierre contable
B25: Casos prácticos para comprender la contabilización de activos en el cierre contable
B27: Carta de finalización del contrato individual de trabajo por justa causa
B29: Liquidador en Excel para la determinación de diferencias temporarias e impuesto diferido
B31: Impuesto diferido en la depreciación de propiedad, planta y equipo (caso práctico en Excel)
B33: Casos prácticos sobre métodos para determinar la naturaleza del impuesto diferido
B35: Simulador con las diferencias permanentes, temporales y temporarias: efectos en la utilidad contable y fiscal
B37: Simulador para la clasificación de entidades en los grupos 1, 2 o 3 de Estándares Internacionales
B39: Seleccionador de políticas contables y ejemplos prácticos
B41: Ejemplos prácticos sobre CINIIF y SIC aplicados a Colombia
B43: Simulador de préstamo para vivienda: modalidad de cuota fija en pesos
B45: Plantilla en Excel (con macros) del estado de costos de producción y de ventas
B47: Liquidador de indicadores de detrimento patrimonial e insolvencia financiera
B49: Caso práctico en Excel: utilidad del impuesto diferido en la corrección del efecto de las normas fiscales
B51: Casos prácticos en Excel con las diferencias más comunes en el proceso de conciliación fiscal de personas jurídicas
B53: Liquidador de indicadores financieros
B55: Liquidador avanzado en Excel (con macros) de intereses moratorios sobre deudas tributarias
B57: [Liquidador] Tabla de amortización en Excel de un contrato de leasing
B59: Formato de solicitud de licencia de calamidad doméstica
B61: [Simulador] Análisis de propuestas de inversión con el uso del valor presente y valor presente neto
B63: [Liquidador] Modelos y formatos para la elaboración de estados financieros y cálculo de los indicadores financieros
B65: Simulador de casos de descuentos tributarios y donaciones: conciliación contable y tributaria
B67: Simulador en Excel del punto de equilibrio como herramienta de análisis financiero
B69: Análisis de la información de ventas y su pronóstico utilizando el método del índice de estacionalidad
B71: Ejercicios de conversión entre tasas de interés efectiva, nominal y periódica
B73: Lista de chequeo para la evaluación de las 4 fases de la planeación tributaria del impuesto de renta
B75: Contabilización de depreciación bajo Estándares Internacionales: casos prácticos en Excel
B77: Lista de chequeo de las etapas requeridas en el proceso presupuestal
B79: Liquidador para la clasificación de empresas en Colombia según sus ingresos y sector económico
B81: Modelo de certificación del tamaño de una empresa en Colombia
B83: Ejercicio en Excel para el reconocimiento del deterioro de inventarios al cierre contable de una pyme
B85: Guía en Excel con los principales índices de coherencia tributaria para las personas jurídicas
B87: [Matriz] Tipos de sociedades en Colombia
B89: Liquidador de aportes a seguridad social de independientes bajo el esquema de presunción de costos (Resolución UGPP 532 de 2024)
B91: Ejercicios sobre métodos de depreciación: línea recta, decreciente, unidades de producción y más
B93: Liquidador en Excel para el cálculo de intereses de mora y su IVA en cuentas por cobrar vencidas
B95: Modelo de carta para el incremento anual del arrendamiento comercial
B97: Liquidador avanzado en Excel (con macros) de intereses moratorios sobre deudas tributarias
B99: [Guía] Beneficios tributarios en el impuesto de renta AG 2024
B101: [Liquidador] Formato de hoja de costos en Excel con macros
B103: Estado de flujos de efectivo por el método indirecto: ejercicio práctico y plantilla en Excel
B105: Casos prácticos en Excel de contabilización de contratos de prestación de servicios independientes
B107: Casos prácticos de contabilización de compras e impuestos asumidos
B109: Plantilla de control de cuentas por cobrar y política de recaudo a clientes
B111: [Lista de chequeo] Principales actividades en el cierre mensual de una pyme
B113: Papeles de trabajo del auditor: cuestionarios de control interno para pymes y lista de chequeo
B115: Plantilla de control de cuentas por pagar y política de pago a proveedores
B117: Estado de flujos de efectivo por el método directo: ejercicio práctico y plantilla en Excel
B119: Modelo de contrato de arrendamiento de local comercial, oficina o bodega
B121: Clasificación de arrendamientos según la sección 20 del Estándar para Pymes: 5 casos prácticos en Excel
B123: Formato en Excel de circularización de clientes automatizado
B125: Modelos de conciliación bancaria (individual y conjunta) en Excel
B127: Liquidador en Excel para calcular la contribución 2024 a Supersociedades
B129: Modelo de contrato de outsourcing o tercerización
B131: Liquidador (con macros) de sanciones relacionadas con la declaración informativa de precios de transferencia
B133: Caso práctico en Excel: contabilización de ajustes por conciliación bancaria
B135: Caso práctico en Excel: contabilización de sobrantes y faltantes de caja
B137: Formato en Excel de circularización de proveedores automatizado
B139: Liquidador avanzado en Excel (con macros) de intereses moratorios sobre deudas tributarias
B141: Modelo en Excel: cálculo de intereses presuntivos en 2024 sobre préstamos entre socios y sociedades
B143: Casos prácticos de contabilización de ingresos en pymes bajo Estándares Internacionales
B145: Formato de flujo de caja real y presupuestado
B147: Casos prácticos de contabilización de arrendamientos financiero y operativo
B149: Ejercicio para la distribución de las rentas exentas y deducciones imputables limitadas en las personas naturales residentes (Resolución 000120 de 2024)
B151: Carta de finalización del contrato de arrendamiento por vencimiento del término
B153: Certificación de baja de inventarios por obsolescencia (Excel con macros)
B155: Modelo de notificación de sanción disciplinaria al trabajador
B157: Simulador para comparar créditos bancarios con tabla de amortización
B159: Modelo de pagaré en blanco y carta de instrucción
B161: Comparativo de normas de la Resolución 000165 de 2023 sobre facturación electrónica modificadas con la Resolución 000119 de 2024
B163: Formato de arqueo de caja general con macros
B165: Modelo en Word de acuerdo de pago
B167: Cálculo del límite de subcapitalización: casos prácticos en Excel
B169: Modelo de citación a descargos
B171: [Pack de Formatos] Top 15 de los mejores liquidadores para elaborar tus declaraciones de renta de personas naturales AG 2023
B173: [Liquidador] Excel del formulario 210 para la declaración de renta de personas naturales residentes que no llevan contabilidad AG 2023
B175: [Liquidador] Excel del formulario 210 y formato 2517 para la declaración de renta de personas naturales residentes que llevan contabilidad AG 2023
B177: Modelo de carta de respuesta a la solicitud de un servicio
B179: Liquidador de auxilio de incapacidad (valores asumidos por el empleador, la EPS o la ARL)
B181: Formato de control de clientes de declaración de renta de persona natural
B183: Liquidador en Excel sobre efectos fiscales de escriturar bienes inmuebles por debajo del valor comercial
B185: Liquidador avanzado en Excel (con macros) de intereses moratorios sobre deudas tributarias
B187: Plantilla automática para control y auditoría del gasto de servicios públicos
B189: Casos prácticos sobre AIU: cálculo del IVA y retención en la fuente en esta figura
B191: Caso práctico de contabilización de un préstamo bancario en pymes y microempresas
B193: Caso práctico de declaración de renta a partir de información reportada por terceros
B195: Caso práctico de contabilización de devoluciones en ventas
B197: Valor patrimonial de acciones y aportes en la declaración de renta de personas naturales por el AG 2023
B199: Formato de arqueo de caja menor con macros
B201: Acta de diligencia de descargos
B203: Formato en Excel para la toma de inventario físico (con macros)
B205: [Pack de Formatos] Top 15 de los mejores liquidadores para elaborar tus declaraciones de renta de personas naturales AG 2023
B207: Modelo de carta de renuncia
B209: Modelo de carta de aceptación de renuncia de un trabajador
B211: Modelo de memorial para solicitar al juez librar medida cautelar de embargo
B213: Simulador del límite de pagos en efectivo
B215: [Liquidador] Excel del formulario 110 y formato 2516 para la declaración de renta de personas naturales no residentes que llevan contabilidad AG 2023
B217: Normas del impuesto de renta de personas naturales afectadas con la Ley 2277 de 2022 que se deben considerar para preparar las declaraciones del AG 2023
B219: Liquidador de aportes a seguridad social durante la licencia de maternidad
B221: Modelo de solicitud de permiso para autorizar el trabajo en horas extra
B223: Caso práctico sobre liquidación de sucesión ilíquida e impuesto de ganancia ocasional
B225: Comparativo de las normas afectadas por la reforma tributaria – Ley 2277 de 2022
B227: Liquidador avanzado en Excel (con macros) de intereses moratorios sobre deudas tributarias
B229: [Liquidador] Excel del formulario 110 para la declaración de renta de personas naturales no residentes que no llevan contabilidad AG 2023
B231: Modelo en Word de un acuerdo de confidencialidad
B233: Modelo de revocatoria de poder otorgado a un abogado
B235: Carta para solicitar a la empresa de servicios públicos la cancelación del contrato de telefonía e internet
B237: Modelo de carta para solicitar el pago de acreencias laborales
B239: Liquidador del componente inflacionario de los rendimientos o costos financieros
B241: Ejercicios sobre la determinación de la renta líquida de trabajo cuando hay rentas laborales y honorarios
B243: Liquidador del anticipo del impuesto de renta 2024 para personas jurídicas y naturales
B245: Liquidador en Excel del porcentaje fijo de retención en la fuente sobre salarios en junio de 2024 – Procedimiento 2
B247: Modelo de llamado de atención
B249: Modelo de derecho de petición para solicitar certificado laboral
B251: Modelo de carta otorgando poder
B253: Liquidador automatizado de la prima de servicios con comprobante de pago
B255: [Guía] Características básicas de la cedulación de personas naturales residentes AG 2023
B257: Cuestionario para definir si una persona natural está obligada a presentar declaración de renta AG 2023
B259: Modelo de derecho de petición para el pago de incapacidades de trabajadores independientes
B261: Simulador del beneficio de auditoría
B263: [Liquidador] Excel del formulario 210 y formato 2517 para la declaración de renta de personas naturales residentes que llevan contabilidad AG 2023
B265: Liquidador avanzado en Excel (con macros) de intereses moratorios sobre deudas tributarias
B267: Liquidador y caso práctico para calcular y contabilizar horas extra y recargos durante la reducción de la jornada laboral en 2024
B269: [Liquidador] Excel del formulario 210 para la declaración de renta de personas naturales residentes que no llevan contabilidad AG 2023
B271: Simulador en Excel para realizar la liquidación de contratos de trabajo
B273: Simulador para determinar si una persona natural es residente fiscal en Colombia
B275: Liquidador en Excel de nómina para trabajadora en licencia de maternidad
B277: Liquidador de auxilio de incapacidad aplicado a salario variable, fijo o integral
B279: [Lista de chequeo] soportes para preparación y presentación de la declaración de renta de personas naturales
B281: Contrato de obra o labor
B283: Simulador de sanción por no pagar la liquidación del contrato laboral
B285: Modelo de contrato de mandato
B287: [Liquidador] Calculadora de monetización de la cuota de aprendizaje Sena
B289: Liquidador de prestaciones sociales y vacaciones con salario variable
B291: Simulador del impuesto para dividendos y participaciones gravados de 2017 y siguientes luego de la Ley 2277 de 2022
B293: Simulador del impuesto para dividendos y participaciones no gravados de 2017 y siguientes luego de la Ley 2277 de 2022
B295: Liquidador de prestaciones sociales para trabajadores domésticos por días
B297: Liquidador de seguridad social para trabajadores domésticos por días con múltiples empleadores
B299: Caso práctico de liquidación de nómina con salario integral
B301: Modelo de contrato de trabajo a término fijo
B303: Liquidador automático de utilidad por venta de activo fijo depreciable que será renta por recuperación de deducciones
B305: Notificación al empleado de la reducción de la jornada laboral
B307: [Liquidador] Excel del formulario 2593 AG 2024: declaración de anticipos bimestrales – régimen simple
B309: [Pack de Formatos] 15 herramientas que te facilitarán la declaración de renta de personas jurídicas AG 2023
B311: Modelo del certificado de donación para que proceda el descuento tributario en la declaración de renta
B313: Liquidador de indemnización por despido sin justa causa (contrato indefinido)
B315: Liquidador automatizado de intereses a las cesantías y su comprobante de pago
B317: Modelo de certificado de no declarante del impuesto de renta y complementario
B319: Plantilla en Excel del formulario 310 AG 2024: declaración del impuesto nacional al consumo –INC–
B321: Plantilla en Excel del formulario 420 AG 2024: declaración anual del impuesto al patrimonio
B323: Modelo de carta de solicitud de corrección de información exógena
B325: [Pack de Formatos] 15 plantillas y guías para el reporte de información exógena 2023
B327: [Liquidador] Plantilla del formato 1647 de exógena 2023: reporte de ingresos recibidos para terceros
B329: [Liquidador] Plantilla del formato 1010 de exógena 2023: información de socios, cooperados o comuneros
B331: [Liquidador] Plantilla del formato 1004 de exógena 2023: reporte de descuentos al impuesto de renta y el SIMPLE
B333: [Matriz] Resumen con las categorías de los informantes de exógena AG 2023 y los formatos que deben usar
B335: Liquidador del cálculo de retención en la fuente por pensiones
B337: Liquidador de aportes al fondo de solidaridad pensional por parte de un empleado
B339: Liquidador (con macros) de nómina de empleados de servicio doméstico que laboran por días
B341: [Liquidador] Plantilla en Excel para el control de entrega de dotación a empleados
B343: [Liquidador] Plantilla de los formatos de exógena del 5247 al 5252 por el AG 2023: reportes de los mandatarios
B345: [Liquidador] Plantilla del formato 1009 de exógena 2023: información de cuentas por pagar
B347: [Liquidador] Plantilla del formato 1008 de exógena 2023: información de cuentas por cobrar
B349: [Liquidador] Plantilla del formato 1007 de exógena 2023: información de ingresos propios
B351: [Lista de chequeo] Guía en Excel para auditar el formato 2516: conciliación fiscal de las personas jurídicas
B353: Liquidador de indemnización por despido sin justa causa (contrato fijo y de obra o labor)
B355: Casos prácticos de retención en la fuente por compras, servicios y honorarios
B357: [Liquidador] Formulario 260 AG 2023 – declaración anual del régimen simple (personas naturales que no llevan contabilidad)
B359: [Liquidador] Formulario 260 AG 2023 – declaración anual del régimen simple (personas naturales y jurídicas que llevan contabilidad)
B361: [Liquidador] Plantilla del formato 2276, 2280 y 2743 para el reporte de información exógena de 2023
B363: [Liquidador] Plantilla del formato 1003 de exógena 2023: retenciones que le practicaron al informante
B365: [Liquidador] Plantilla de los formatos 1005 y 1006 de exógena 2023: reporte del INC e IVA descontable y generados
B367: [Liquidador] Plantilla de los formatos 1011, 1012 y 2275 de exógena 2023 para el reporte de otros datos en renta e IVA
B369: Modelo en Word de un contrato de transacción laboral para la terminación del contrato de trabajo
B371: [Liquidador] Plantilla del formato 1001 del año gravable 2023: reporte de exógena de pagos o abonos en cuenta
B373: Carta para solicitar licencia por luto
B375: Modelo de poder para adelantar sucesión ante notaría
B377: Herramienta en Excel para la consulta de terceros en la Dian
B379: Liquidador del auxilio de incapacidad de origen común para trabajador independiente
B381: Modelo de autorización para el tratamiento y la protección de datos personales
B383: Liquidador en Excel del formulario 110 y el formato 2516: declaración de renta de personas jurídicas AG 2023
B385: [Liquidador] Excel del formulario 350 de retención en la fuente (vigente a partir de agosto 1 de 2024)
B387: Modelo de contrato de trabajo a término indefinido
B389: Liquidador de prestaciones sociales y vacaciones
B391: Liquidador de topes de ingresos para presentar formatos de conciliación fiscal 2516 y 2517
B393: [Guía] Clasificación de las personas jurídicas frente al impuesto de renta y el SIMPLE AG 2023
B395: [Lista de chequeo] Guía para evitar errores en la presentación de información exógena
B397: Formato de cálculo de horas extra y recargos mensuales o quincenales
B399: Modelo de certificado laboral
B401: Carta de recomendación laboral
... 2069 more rows
